bitfinex/quotes_ETHUSD_20240921
["timestamp","ask_amount","ask_price","bid_price","bid_amount"]
[1726893093824,0.097782,2537.0,2536.6,0.48542168]
[1726893097364,0.097782,2537.0,2536.9,6.78264949]
[1726893097570,0.097782,2537.0,2536.9,6.86147331]
[1726893097718,2.4585,2537.3,2536.9,6.86147331]
[1726893097923,0.09817724,2537.0,2536.9,6.86147331]
[1726893098156,2.4585,2537.3,2536.9,7.64338064]
[1726893098354,0.09817724,2537.0,2536.9,7.64338064]
[1726893098560,2.4585,2537.3,2536.9,7.64338064]
[1726893098765,0.09817724,2537.0,2536.9,7.64338064]
[1726893098975,2.4585,2537.3,2536.9,7.64338064]
[1726893099139,2.4585,2537.3,2537.0,0.86009806]
[1726893100491,2.4585,2537.3,2537.0,3.86009806]
[1726893101994,2.4585,2537.7,2537.0,3.86009806]
[1726893103674,2.4585,2537.7,2537.1,4.81907294]
[1726893103874,2.4585,2537.7,2537.2,0.8679171]
[1726893104071,2.4585,2537.7,2537.3,0.07881354]
[1726893104409,2.4585,2537.7,2537.3,3.86146303]
[1726893104993,4.99815916,2537.8,2537.4,3.0]
[1726893107382,2.4585,2537.7,2537.2,3.8679171]
[1726893107986,2.4585,2537.7,2537.3,0.86081666]
[1726893108687,0.09836399,2537.6,2537.3,0.86081666]
[1726893109871,0.09836399,2537.6,2537.5,6.78264949]
[1726893110081,2.4585,2538.0,2537.5,6.86145366]
[1726893112118,2.4585,2538.0,2537.4,3.0]
[1726893112266,0.09533296,2537.9,2537.3,0.86081666]
[1726893112606,2.4585,2537.8,2537.3,0.86081666]
[1726893113064,0.09533296,2537.7,2537.3,0.86081666]
[1726893113255,2.4585,2537.8,2537.3,0.86081666]
[1726893113456,0.09533296,2537.7,2537.3,0.86081666]
[1726893113708,2.4585,2537.8,2537.4,0.39396306]
[1726893113864,0.09533296,2537.6,2537.4,0.39396306]
[1726893114059,2.4585,2537.8,2537.4,0.39396306]
[1726893114262,0.09533296,2537.7,2537.4,0.39396306]
[1726893114499,2.4585,2537.8,2537.4,0.39396306]
[1726893114704,0.09533296,2537.6,2537.4,0.39396306]
[1726893114956,2.4585,2537.8,2537.4,0.39396306]
[1726893115262,0.09533296,2537.5,2537.4,0.39396306]
[1726893115465,2.4585,2537.8,2537.4,0.39396306]
[1726893115632,0.09533296,2537.5,2537.4,0.39396306]
[1726893115829,2.4585,2537.8,2537.4,0.39396306]
[1726893116140,2.4585,2537.8,2537.4,3.39396306]
[1726893116346,0.09533296,2537.7,2537.5,0.71766126]
[1726893116548,2.4585,2537.8,2537.5,0.71766126]
[1726893116754,0.09533296,2537.6,2537.5,0.71766126]
[1726893116930,2.4585,2537.8,2537.5,0.71766126]
[1726893117254,0.09533296,2537.6,2537.5,0.71766126]
[1726893117461,2.4585,2537.8,2537.4,0.39396306]
[1726893117625,0.09533296,2537.6,2537.4,0.39396306]
[1726893117824,2.4585,2537.8,2537.4,0.39396306]
[1726893118047,0.09533296,2537.5,2537.4,0.39396306]
[1726893118252,2.4585,2537.8,2537.4,0.39396306]
[1726893118776,0.09533296,2537.7,2537.4,0.39396306]
[1726893118995,2.4585,2537.8,2537.4,0.39396306]
[1726893119135,0.09533296,2537.6,2537.4,0.39396306]
[1726893119472,2.4585,2537.8,2537.4,0.39396306]
[1726893120074,0.09533296,2537.7,2537.4,0.39396306]
[1726893120437,2.4585,2537.8,2537.4,0.39396306]
[1726893120631,0.09533296,2537.6,2537.4,0.39396306]
[1726893120854,2.4585,2537.8,2537.4,0.39396306]
[1726893121067,0.09533296,2537.5,2537.4,0.39396306]
[1726893121457,2.4585,2537.8,2537.4,0.39396306]
[1726893121695,0.09533296,2537.7,2537.2,3.0]
[1726893122396,0.09533296,2537.7,2537.2,2.99919741]
[1726893122950,0.09533296,2537.7,2536.2,7.3]
[1726893122951,2.2805,2537.6,2536.0,2.88338599]
[1726893123187,2.2805,2537.4,2536.1,0.9576]
[1726893123495,8.85954029,2537.5,2536.1,0.9576]
[1726893123496,2.2805,2537.2,2536.1,0.9576]
[1726893123664,2.2805,2537.0,2536.1,0.9576]
[1726893123985,2.2805,2536.8,2536.1,0.9576]
[1726893124552,0.09511033,2536.7,2536.1,3.9576]
[1726893124884,0.09511033,2536.7,2536.2,3.78264949]
[1726893125051,0.09511033,2536.7,2536.3,0.56075652]
[1726893125252,2.2805,2536.8,2536.3,0.56075652]
[1726893125553,0.09479423,2536.7,2536.3,0.48190968]
[1726893125760,0.09479423,2536.7,2536.1,0.9576]
[1726893125761,0.09479423,2536.7,2536.1,3.0]
[1726893125984,2.2805,2536.6,2535.9,3.0]
[1726893126163,2.37527627,2536.6,2535.9,3.0]
[1726893126370,2.2805,2536.6,2535.9,3.0]
[1726893126587,0.09476908,2536.5,2535.9,3.0]
[1726893126902,0.09476908,2536.5,2536.0,0.77402495]
[1726893129269,0.09476908,2536.5,2535.8,4.74024949]
[1726893129994,2.2805,2536.4,2535.7,3.0]
[1726893130194,2.2805,2536.4,2535.6,0.9576]
[1726893130395,0.09473314,2536.3,2535.8,3.0]
[1726893133107,0.09473314,2536.3,2535.9,0.07885589]
[1726893133307,0.09473314,2536.3,2535.9,0.76500643]
[1726893133996,0.09473314,2536.3,2535.9,0.68615054]
[1726893135382,0.09473314,2536.3,2535.9,0.7650065]
[1726893135907,0.09473314,2536.3,2535.9,0.68615054]
[1726893145986,2.2561,2536.2,2535.9,0.68615054]
[1726893146388,0.09438818,2536.1,2535.9,0.68615054]
[1726893147025,2.4634,2536.0,2535.5,3.0]
[1726893147333,0.09436302,2535.9,2535.6,0.07886752]
[1726893147620,0.09436302,2535.9,2535.8,0.9576]
[1726893147772,0.09436302,2535.9,2535.8,1.4395117]
[1726893147979,2.4634,2536.3,2535.8,0.4819117]
[1726893148208,0.09433786,2535.9,2535.8,3.0]
[1726893148477,2.55773786,2535.9,2535.8,3.0]
[1726893149126,0.09433786,2535.9,2535.8,3.0]
[1726893149305,2.4634,2536.1,2535.8,3.0]
[1726893149508,0.09429832,2536.0,2535.8,3.0]
[1726893149711,0.09429832,2536.0,2535.5,0.07886479]
[1726893149712,0.09429832,2536.0,2535.5,3.78264949]
[1726893149891,0.09429832,2536.0,2535.6,3.47402495]
[1726893151906,0.09429832,2536.0,2535.7,1.74702039]
[1726893157215,0.09429832,2536.0,2535.9,1.74702039]
[1726893162426,0.09429832,2536.0,2535.6,0.55289252]
[1726893162427,0.09429832,2536.0,2535.7,1.74702039]
[1726893162814,0.09429832,2536.0,2535.8,3.0]
[1726893163046,0.09429832,2536.0,2535.9,0.57046204]
[1726893169368,0.09429832,2536.0,2535.5,2.70462039]
[1726893169512,2.2864,2535.9,2535.4,1.74702039]
[1726893169713,0.09428036,2535.8,2535.4,4.74702039]
[1726893170518,0.09428036,2535.8,2535.5,1.74702039]
[1726893171053,0.09428036,2535.8,2535.6,0.47470204]
[1726893171671,0.09428036,2535.8,2535.2,3.0]
[1726893171817,0.09428036,2535.8,2535.3,1.74702039]
[1726893172023,2.2864,2535.9,2535.3,1.74702039]
[1726893172225,2.2864,2535.9,2535.5,1.74702039]
[1726893172521,0.09428036,2535.8,2535.7,1.74702039]
[1726893172719,0.09428036,2535.8,2535.7,2.22960966]
[1726893173558,2.2864,2536.1,2535.8,0.9576]
[1726893173760,2.2864,2536.1,2536.0,1.74702039]
[1726893174060,2.2864,2536.4,2536.0,1.74702039]
[1726893174263,2.2864,2536.4,2536.2,1.74702039]
[1726893174938,2.2864,2536.4,2536.0,1.74702039]
[1726893178647,1.98159662,2536.4,2536.0,1.74702039]
[1726893179572,1.98159662,2536.4,2535.8,1.74702039]
[1726893179778,1.98159662,2536.4,2535.9,0.22296097]
[1726893180071,1.98159662,2536.4,2535.6,1.74702039]
[1726893180427,0.07873164,2536.3,2535.4,1.2624]
[1726893180677,4.99815916,2536.5,2535.4,1.2624]
[1726893180848,0.07873164,2536.4,2535.6,1.74702039]
[1726893181781,2.4997,2536.3,2535.6,1.74702039]
[1726893183202,2.4997,2536.3,2535.8,1.74702039]
[1726893183542,0.09428035,2536.2,2535.8,1.74702039]
[1726893183753,2.4997,2536.3,2535.8,1.74702039]
[1726893183958,0.09428035,2536.2,2535.8,1.74702039]
[1726893184200,2.4997,2536.3,2535.8,1.74702039]
[1726893184404,0.09428035,2536.1,2535.8,1.74702039]
[1726893184589,2.4997,2536.3,2535.8,1.74702039]
[1726893184788,0.09428035,2536.0,2535.8,1.74702039]
[1726893184997,2.4997,2536.3,2535.8,1.74702039]
[1726893185183,0.09428035,2535.9,2535.8,1.74702039]
[1726893185387,0.07873164,2536.3,2535.3,0.0788691]
[1726893185567,2.4997,2535.8,2535.5,1.74702039]
[1726893185906,2.4997,2535.8,2535.5,1.82589035]
[1726893186054,0.09428035,2535.7,2535.5,1.82589035]
[1726893186458,2.4997,2535.8,2535.5,1.82589035]
[1726893186800,0.09428035,2535.7,2535.6,0.48258904]
[1726893187304,2.4997,2535.8,2535.6,0.48258904]
[1726893187788,4.99815916,2536.5,2535.6,1.74498904]
[1726893187789,0.09428035,2535.7,2535.6,1.74498904]
[1726893188101,0.09428035,2535.7,2535.6,6.49200943]
[1726893188399,2.4997,2536.0,2535.7,3.0]
[1726893188576,2.4997,2536.0,2535.8,0.64920094]
[1726893188757,0.09428035,2535.9,2535.8,0.64920094]
[1726893189607,0.09428035,2535.9,2535.6,1.74702039]
[1726893193105,0.09428035,2535.9,2535.4,1.74702039]
[1726893194225,2.4997,2535.8,2535.4,1.74702039]
[1726893194623,0.09420845,2535.7,2535.4,1.74702039]
[1726893197732,2.392,2535.6,2535.3,0.72734595]
[1726893197915,2.392,2535.4,2535.1,0.0374035]
[1726893198099,2.392,2535.2,2535.1,0.0374035]
[1726893198615,2.48603227,2535.2,2535.1,0.0374035]
[1726893199235,1.84105266,2535.2,2535.1,0.0374035]
[1726893199398,4.23305266,2535.2,2535.1,0.0374035]
[1726893199598,4.66423109,2535.2,2535.1,0.0374035]
[1726893201310,4.66423109,2535.2,2534.3,0.0374035]
[1726893201509,1.74702039,2534.9,2534.3,0.0374035]
[1726893201723,2.392,2534.7,2534.3,0.0374035]
[1726893201922,0.17242933,2534.8,2534.3,0.0374035]
[1726893201923,2.392,2534.5,2534.3,0.0374035]
[1726893202125,0.09369769,2534.4,2534.3,0.0374035]
[1726893203644,2.392,2534.7,2534.3,0.0374035]
[1726893203816,0.09295657,2534.4,2534.3,0.0374035]
[1726893204360,2.392,2534.7,2534.3,0.0374035]
[1726893204653,0.09295657,2534.6,2534.3,0.0374035]
[1726893204853,2.392,2534.5,2534.3,0.0374035]
[1726893205106,0.25636882,2534.4,2534.3,0.0374035]
[1726893205260,0.34937219,2534.4,2534.3,0.0374035]
[1726893205932,0.09300337,2534.4,2534.3,0.0374035]
[1726893207734,2.56373501,2534.4,2534.3,0.0374035]
[1726893213954,2.48500337,2534.4,2534.3,0.0374035]
[1726893219932,2.56373501,2534.4,2534.3,0.0374035]
[1726893220628,2.48500337,2534.4,2534.3,0.0374035]
[1726893220824,3.12049111,2534.4,2534.3,0.0374035]
[1726893221445,2.48500337,2534.4,2534.3,0.0374035]
[1726893225166,2.56373501,2534.4,2534.3,0.0374035]
[1726893230798,2.48500337,2534.4,2534.3,0.0374035]
[1726893242918,0.09300337,2534.4,2534.3,0.0374035]
[1726893243273,2.3913,2534.6,2534.3,0.0374035]
[1726893243587,0.07873164,2534.5,2534.3,0.0374035]
[1726893243986,0.09227012,2534.4,2534.3,0.0374035]
[1726893245489,2.3913,2534.6,2534.3,0.0374035]
[1726893245799,2.47003164,2534.6,2534.3,0.0374035]
[1726893246010,0.09227012,2534.5,2534.3,0.0374035]
[1726893247920,1.84227577,2534.5,2534.3,0.0374035]
[1726893248235,2.47003164,2534.4,2534.3,0.0374035]
[1726893248588,2.56230176,2534.4,2534.3,0.0374035]
[1726893250086,7.33543684,2534.4,2534.3,0.0374035]
[1726893250340,7.33543684,2534.4,2533.6,0.0374035]
[1726893250341,0.55,2534.1,2533.6,0.0374035]
[1726893250542,4.14130565,2533.7,2533.6,0.0374035]
[1726893250829,5.10543621,2533.7,2533.6,0.0374035]
[1726893251325,5.19773154,2533.7,2533.6,0.0374035]
[1726893251892,3.44772589,2533.7,2533.6,0.0374035]
[1726893252086,2.48359533,2533.7,2533.6,0.0374035]
[1726893252303,0.17102697,2533.7,2533.6,0.0374035]
[1726893252496,0.09229533,2533.7,2533.6,0.0374035]
[1726893252745,2.3913,2534.0,2533.6,0.0374035]
[1726893252913,0.09229533,2533.7,2533.6,0.0374035]
[1726893253389,2.47003164,2534.0,2533.6,0.0374035]
[1726893253588,0.62640176,2533.9,2533.6,0.0374035]
[1726893253918,0.07873164,2533.8,2533.6,0.0374035]
[1726893254509,0.09229533,2533.7,2533.6,0.0374035]
[1726893254724,0.09229533,2533.7,2533.6,1.3746035]
[1726893254958,0.07873164,2534.0,2533.6,1.3746035]
[1726893255122,0.09229533,2533.7,2533.6,1.3746035]
[1726893255642,0.07873164,2534.0,2533.6,1.3746035]
[1726893255827,0.09210086,2533.7,2533.6,1.3746035]
[1726893256174,2.3913,2534.2,2533.6,1.3746035]
[1726893256445,0.07873164,2534.4,2533.6,1.3746035]
[1726893256446,2.4093,2534.4,2533.6,1.3746035]
[1726893256663,0.09210086,2534.1,2533.6,1.3746035]
[1726893256870,4.99815916,2534.5,2533.6,1.3746035]
[1726893257160,0.09210086,2534.0,2533.6,1.3746035]
[1726893257308,4.99815916,2534.5,2533.6,1.3746035]
[1726893257510,0.09210086,2533.9,2533.6,1.3746035]
[1726893257774,4.99815916,2534.5,2533.6,1.3746035]
[1726893257949,0.09210086,2533.8,2533.7,0.07892874]
[1726893258126,4.99815916,2534.5,2533.6,1.3746035]
[1726893258322,0.09210086,2533.8,2533.6,1.3746035]
[1726893258555,5.0768908,2534.5,2533.6,1.3746035]
[1726893258717,0.09210086,2533.7,2533.6,1.3746035]
[1726893259063,5.0768908,2534.5,2533.6,1.81206385]
[1726893259271,0.09211526,2533.7,2533.6,1.3746035]
[1726893259435,0.07873164,2534.4,2533.6,1.3746035]
[1726893259775,0.09210806,2534.3,2533.6,1.3746035]
[1726893260057,0.07873164,2534.2,2533.6,1.3746035]
[1726893260418,6.29539404,2534.1,2533.6,1.3746035]
[1726893260619,0.71614421,2534.0,2533.6,0.0374035]
[1726893261019,0.09210806,2533.9,2533.6,0.0374035]
[1726893261864,0.07873164,2533.8,2533.6,0.0374035]
[1726893262224,0.09210806,2533.7,2533.6,0.0374035]
[1726893262520,0.07873164,2533.9,2533.6,0.0374035]
[1726893263036,0.09210806,2533.8,2533.6,0.0374035]
[1726893263950,0.1708397,2533.8,2533.6,0.0374035]
[1726893264150,0.07873164,2533.8,2533.6,0.0374035]
[1726893264360,0.09210806,2533.7,2533.6,0.0374035]
[1726893264722,0.07873164,2534.0,2533.6,0.0374035]
[1726893264923,2.50140806,2533.7,2533.6,0.0374035]
[1726893265118,6.28201762,2533.7,2533.6,0.0374035]
[1726893265332,2.5801397,2533.7,2533.6,0.0374035]
[1726893269590,6.37412568,2533.7,2533.6,0.0374035]
[1726893272389,6.92412568,2533.7,2533.6,0.0374035]
[1726893272550,7.61653825,2533.7,2533.6,0.0374035]
[1726893275769,7.53780661,2533.7,2533.6,0.0374035]
[1726893275980,7.61653825,2533.7,2533.6,0.0374035]
[1726893276191,7.53780661,2533.7,2533.6,0.0374035]
[1726893278194,7.61653825,2533.7,2533.6,0.0374035]
[1726893278557,7.53780661,2533.7,2533.6,0.0374035]
[1726893279166,7.61653825,2533.7,2533.6,0.0374035]
[1726893282402,10.61653825,2533.7,2533.6,0.0374035]
[1726893282703,10.53780661,2533.7,2533.6,0.0374035]
[1726893286717,7.53780661,2533.7,2533.6,0.0374035]
[1726893287073,0.09210806,2533.7,2533.6,0.0374035]
[1726893287282,0.55,2533.8,2533.6,0.0374035]
[1726893287506,0.08842605,2533.7,2533.6,0.0374035]
[1726893287684,0.55,2533.8,2533.6,0.0374035]
[1726893287882,0.08842605,2533.7,2533.6,0.0374035]
[1726893288306,0.55,2533.8,2533.6,0.0374035]
[1726893288608,0.84992945,2533.7,2533.6,0.0374035]
[1726893288773,0.77119781,2533.7,2533.6,0.0374035]
[1726893289174,0.08842605,2533.7,2533.6,0.0374035]
[1726893289401,0.55,2534.0,2533.6,0.0374035]
[1726893289595,0.08842605,2533.7,2533.6,0.0374035]
[1726893289792,0.55,2534.0,2533.6,0.0374035]
[1726893290005,0.08842605,2533.7,2533.6,0.0374035]
[1726893290207,0.55,2534.0,2533.6,0.0374035]
[1726893290407,0.08842605,2533.7,2533.6,0.0374035]
[1726893290877,0.55,2534.0,2533.6,0.0374035]
[1726893291222,0.08842605,2533.9,2533.6,0.0374035]
[1726893291507,0.08842605,2533.9,2533.7,1.814529]
[1726893291722,2.405,2534.6,2533.8,1.3372]
[1726893291723,0.07873164,2534.5,2533.8,1.3372]
[1726893291932,6.51821762,2534.5,2533.8,1.3372]
[1726893292833,0.55,2534.4,2533.8,1.3372]
[1726893293126,0.07873164,2534.3,2533.8,1.3372]
[1726893296528,0.55,2534.2,2533.8,1.3372]
[1726893296906,0.07873164,2534.1,2533.8,1.3372]
[1726893297246,0.55,2534.4,2533.8,1.3372]
[1726893297407,0.55,2534.2,2533.8,1.3372]
[1726893298248,0.07873164,2534.1,2533.8,1.3372]
[1726893298627,2.2544,2534.0,2533.6,0.0374035]
[1726893298828,0.07873164,2533.9,2533.6,0.0374035]
[1726893299037,0.3120448,2533.9,2533.6,0.0374035]
[1726893301920,9.59838598,2533.7,2533.6,0.0374035]
[1726893302749,5.8044,2533.7,2533.6,0.0374035]
[1726893302907,5.88313164,2533.7,2533.6,0.0374035]
[1726893303755,5.96579616,2533.7,2533.6,0.0374035]
[1726893305056,0.16139616,2533.7,2533.6,0.0374035]
[1726893305375,0.08266452,2533.7,2533.6,0.0374035]
[1726893305519,0.07873164,2533.7,2533.6,0.0374035]
[1726893305855,0.16139616,2533.7,2533.6,0.0374035]
[1726893306020,0.07873164,2533.7,2533.6,0.0374035]
[1726893306335,0.62873164,2534.0,2533.6,0.0374035]
[1726893306541,0.08271497,2533.7,2533.6,0.0374035]
[1726893306858,0.07873164,2533.7,2533.6,0.0374035]
[1726893307353,0.16144661,2533.7,2533.6,0.0374035]
[1726893307955,0.16144661,2533.7,2532.8,0.0374035]
[1726893307956,3.55,2533.2,2532.8,0.0374035]
[1726893308257,13.75538598,2532.9,2532.8,0.0374035]
[1726893308473,13.75538598,2532.9,2532.1,0.0374035]
[1726893308474,5.8044,2532.5,2532.1,0.0374035]
[1726893308755,11.89249158,2532.5,2532.1,0.0374035]
[1726893308937,11.89635237,2532.5,2532.1,0.0374035]
[1726893309168,13.72525953,2532.5,2532.1,0.0374035]
[1726893309342,13.72525953,2532.5,2531.2,0.005]
[1726893309343,3.79398598,2531.6,2531.2,0.005]
[1726893309652,3.0,2532.0,2531.2,0.005]
[1726893309653,3.79398598,2531.9,2531.2,0.005]
[1726893309831,0.08223183,2531.5,2531.2,0.005]
[1726893310041,3.87271762,2531.9,2531.2,0.005]
[1726893310348,3.79398598,2531.6,2531.2,0.005]
[1726893310791,0.07873164,2531.5,2531.2,0.005]
[1726893310978,0.16096347,2531.5,2531.2,0.005]
[1726893311805,0.08223183,2531.5,2531.2,0.005]
[1726893312165,3.79398598,2531.9,2531.2,0.005]
[1726893312386,0.08223183,2531.4,2531.2,0.005]
[1726893312599,0.07873164,2531.8,2531.2,0.005]
[1726893312804,0.08223183,2531.4,2531.2,0.005]
[1726893312965,0.07873164,2532.3,2531.3,1.4170035]
[1726893313165,0.08223183,2531.4,2531.3,1.4170035]
[1726893313365,3.79398598,2531.9,2531.3,1.4170035]
[1726893313559,0.08223183,2531.4,2531.3,1.4170035]
[1726893313766,3.87271762,2531.9,2531.3,1.4170035]
[1726893313960,0.08223183,2531.4,2531.3,1.4170035]
[1726893314173,3.79398598,2532.1,2531.3,1.4170035]
[1726893314373,0.08223183,2531.4,2531.3,1.4170035]
[1726893314905,3.87271762,2532.1,2531.3,1.4170035]
[1726893315107,0.0815287,2531.4,2531.3,1.4170035]
[1726893315306,4.2833207,2532.1,2531.3,1.4170035]
[1726893315518,0.0815287,2531.4,2531.3,1.4170035]
[1726893315720,4.2833207,2532.1,2531.3,1.4170035]
[1726893315882,0.0815287,2531.4,2531.3,1.4170035]
[1726893316085,4.2833207,2532.1,2531.3,1.4170035]
[1726893316315,0.50986077,2532.0,2531.3,1.4170035]
[1726893316513,0.07873164,2531.9,2531.3,1.4170035]
[1726893316685,3.79398598,2531.8,2531.3,1.4170035]
[1726893316888,0.16026034,2531.7,2531.3,0.0374035]
[1726893317407,3.79398598,2531.5,2531.3,0.0374035]
[1726893317609,0.07873164,2531.4,2531.3,0.0374035]
[1726893317982,0.0815287,2531.4,2531.3,0.0374035]
[1726893318937,3.79398598,2531.8,2531.3,0.0374035]
[1726893319082,0.0815287,2531.4,2531.3,0.0374035]
[1726893319288,0.07873164,2531.7,2531.3,0.0374035]
[1726893319487,0.0815287,2531.6,2531.3,0.0374035]
[1726893319713,0.07873164,2531.8,2531.3,0.0374035]
[1726893319915,0.0815287,2531.5,2531.4,1.3796]
[1726893320123,0.07873164,2531.8,2531.4,1.3796]
[1726893320324,0.0815287,2531.5,2531.4,1.3796]
[1726893320543,0.07873164,2531.8,2531.4,1.3796]
[1726893320700,0.0815287,2531.5,2531.4,1.3796]
[1726893320887,0.07873164,2531.8,2531.4,1.3796]
[1726893321082,0.0815287,2531.7,2531.4,1.3796]
[1726893321288,0.07873164,2531.8,2531.4,1.3796]
[1726893321515,0.0815287,2531.7,2531.4,1.3796]
[1726893321771,0.07873164,2531.8,2531.4,1.3796]
[1726893321924,0.0815287,2531.6,2531.4,1.3796]
[1726893322125,0.07873164,2531.8,2531.4,1.3796]
[1726893322453,0.0815287,2531.5,2531.4,1.3796]
[1726893322630,3.79398598,2532.1,2531.4,1.3796]
[1726893322826,0.0815287,2531.5,2531.4,1.3796]
[1726893323040,0.07873164,2532.0,2531.4,1.3796]
[1726893323227,0.0815287,2531.5,2531.4,1.3796]
[1726893323429,0.07873164,2532.0,2531.4,1.3796]
[1726893323628,0.0815287,2531.5,2531.4,1.3796]
[1726893323829,0.07873164,2532.0,2531.4,1.3796]
[1726893324032,0.0815287,2531.5,2531.4,1.3796]
[1726893324282,0.07873164,2532.0,2531.4,1.3796]
[1726893324429,0.0815287,2531.5,2531.4,1.3796]
[1726893324629,0.07873164,2532.0,2531.4,1.3796]
[1726893325275,0.0815287,2531.9,2531.4,1.3796]
[1726893325567,0.16026034,2531.9,2531.4,1.3796]
[1726893326932,3.79398598,2531.8,2531.4,1.3796]
[1726893327437,0.0815287,2531.7,2531.4,1.3796]
[1726893327749,3.79398598,2531.8,2531.4,1.3796]
[1726893327943,0.0815287,2531.6,2531.4,1.3796]
[1726893328144,3.79398598,2531.8,2531.4,1.3796]
[1726893328341,0.0815287,2531.5,2531.4,1.3796]
[1726893328547,3.79398598,2531.8,2531.4,1.3796]
[1726893328767,0.0815287,2531.5,2531.4,1.3796]
[1726893328928,3.79398598,2531.8,2531.4,1.3796]
[1726893329129,0.0815287,2531.5,2531.4,1.3796]
[1726893329330,0.07873164,2532.0,2531.4,1.3796]
[1726893329674,0.0815287,2531.5,2531.4,1.3796]
[1726893329837,0.4660034,2532.0,2531.4,1.3796]
[1726893330497,0.08132665,2531.9,2531.4,1.3796]
[1726893330644,0.07873164,2531.8,2531.4,1.3796]
[1726893330843,3.87271762,2531.8,2531.4,1.3796]
[1726893331077,0.62821443,2531.7,2531.4,1.3796]
[1726893331244,0.07873164,2531.6,2531.4,1.3796]
[1726893331644,0.70694607,2531.7,2531.4,1.3796]
[1726893331872,0.08132665,2531.5,2531.4,1.3796]
[1726893332164,3.94995552,2531.5,2531.3,0.0374035]
[1726893332372,0.48160036,2531.4,2531.3,0.0374035]
[1726893332572,2.80970036,2531.4,2531.3,0.0374035]
[1726893332730,2.9656699,2531.4,2531.3,0.0374035]
[1726893333174,2.88693826,2531.4,2531.3,0.0374035]
[1726893337160,0.55883826,2531.4,2531.3,0.0374035]
[1726893342099,0.15596954,2531.4,2531.3,0.0374035]
[1726893342297,0.15596954,2531.4,2531.3,1.49601477]
[1726893342504,2.3395,2532.4,2531.3,1.49601477]
[1726893342663,0.07873164,2532.3,2531.3,1.49601477]
[1726893342859,4.01798511,2532.3,2531.3,1.4170035]
[1726893343098,4.01798511,2532.3,2531.5,1.3796]
[1726893343316,3.79398598,2532.1,2531.5,1.3796]
[1726893343455,0.07873164,2532.0,2531.5,1.3796]
[1726893343660,3.79398598,2531.9,2531.5,1.3796]
[1726893343958,3.79398598,2531.7,2531.3,0.0374035]
[1726893344186,0.07873164,2531.6,2531.3,0.0374035]
[1726893344496,0.22399913,2531.6,2531.3,0.0374035]
[1726893345370,0.07873164,2531.5,2531.3,0.0374035]
[1726893345878,0.14526749,2531.4,2531.3,0.0374035]
[1726893347180,0.07873164,2531.8,2531.3,0.0374035]
[1726893347382,0.14526749,2531.4,2531.3,0.0374035]
[1726893347558,1.19976932,2531.8,2531.3,0.0374035]
[1726893347755,0.14526749,2531.4,2531.3,0.0374035]
[1726893348020,1.19976932,2531.8,2531.3,0.0374035]
[1726893348199,0.14526749,2531.4,2531.3,0.0374035]
[1726893348394,1.19976932,2531.8,2531.3,0.0374035]
[1726893348600,0.14526749,2531.4,2531.3,0.0374035]
[1726893348805,0.73332553,2531.7,2531.3,0.0374035]
[1726893348962,0.14526749,2531.4,2531.3,0.0374035]
[1726893349296,1.12103768,2531.8,2531.3,0.0374035]
[1726893349503,0.14526749,2531.4,2531.3,0.0374035]
[1726893349704,4.99815916,2532.0,2531.3,0.0374035]
[1726893349863,0.14526749,2531.4,2531.3,1.4170035]
[1726893350061,5.0768908,2532.0,2531.3,1.4170035]
[1726893350275,0.14526749,2531.4,2531.3,1.4170035]
[1726893350473,5.0768908,2532.0,2531.3,1.4170035]
[1726893350675,0.14526749,2531.4,2531.3,1.4170035]
[1726893350889,5.0768908,2532.0,2531.3,1.4170035]
[1726893351088,0.14526749,2531.4,2531.3,1.4170035]
[1726893351293,3.79398598,2531.9,2531.3,1.4170035]
[1726893351489,0.14526749,2531.4,2531.3,1.4170035]
[1726893351693,0.96581932,2531.8,2531.3,1.4170035]
[1726893351901,0.14526749,2531.4,2531.3,1.4170035]
[1726893352115,0.96581932,2531.8,2531.3,1.4170035]
[1726893352564,0.14526749,2531.7,2531.3,1.4170035]
[1726893352906,0.96581932,2531.8,2531.3,1.4170035]
[1726893353207,0.07873164,2531.7,2531.3,1.4170035]
[1726893353406,0.22399913,2531.7,2531.3,1.4170035]
[1726893357101,0.71450641,2531.7,2531.3,1.4170035]
[1726893357415,0.71450641,2531.7,2531.3,0.0374035]
[1726893358467,1.5279017,2531.7,2531.3,0.0374035]
[1726893359711,0.81339529,2531.6,2531.3,0.0374035]
[1726893359939,0.22420493,2531.5,2531.3,0.0374035]
[1726893361526,0.49902497,2531.5,2531.3,0.0374035]
[1726893362031,1.31242026,2531.5,2531.3,0.0374035]
[1726893362197,0.49902497,2531.5,2531.3,0.0374035]
[1726893363827,3.68032457,2531.4,2531.3,0.0374035]
[1726893363996,3.82588811,2531.4,2531.3,0.0374035]
[1726893364194,4.98245182,2531.4,2531.3,0.0374035]
[1726893364716,3.76235889,2531.4,2531.3,0.0374035]
[1726893365226,14.02953,2531.3,2531.2,0.005]
[1726893365569,5.3815,2531.3,2531.2,0.005]
[1726893365690,4.9357183,2531.3,2531.2,0.005]
[1726893365886,3.71018589,2531.3,2531.2,0.005]
[1726893366095,4.4485028,2531.3,2531.2,0.005]
[1726893366324,2.5542183,2531.3,2531.2,0.005]
[1726893366633,0.14548412,2531.3,2531.2,0.005]
[1726893366986,0.14548412,2531.3,2531.2,1.3846]
[1726893367186,0.81693005,2531.8,2531.2,1.3846]
[1726893367187,0.81693005,2531.9,2531.2,1.46359899]
[1726893367498,4.99815916,2532.0,2531.2,1.46359899]
[1726893367708,4.99815916,2532.0,2531.3,0.4463599]
[1726893367902,4.99815916,2532.0,2531.4,1.45859858]
[1726893367903,0.14548412,2531.9,2531.4,1.45859858]
[1726893368110,0.14548412,2531.9,2531.4,1.3796]
[1726893369107,0.14548412,2531.9,2531.5,1.3796]
[1726893371697,0.14548412,2531.9,2531.7,1.3796]
[1726893371967,0.81693005,2532.4,2531.8,1.45858038]
[1726893372166,0.81693005,2532.8,2531.8,1.45858038]
[1726893372310,0.81693005,2533.1,2532.0,1.3796]
[1726893372641,0.81693005,2533.3,2532.2,1.3796]
[1726893372804,0.81693005,2533.3,2532.4,1.3796]
[1726893373005,1.67138135,2533.6,2532.2,3.0]
[1726893373006,0.81693005,2533.5,2532.6,1.3796]
[1726893373516,0.0374035,2533.6,2532.6,1.3796]
[1726893373935,0.85433355,2533.6,2532.6,1.3796]
[1726893374136,0.32358335,2533.5,2532.6,1.3796]
[1726893374878,0.32358335,2533.5,2532.8,1.3796]
[1726893375028,0.0374035,2533.6,2532.9,0.07895189]
[1726893375222,0.0374035,2533.6,2533.0,1.3796]
[1726893377452,2.4771,2533.5,2533.0,1.3796]
[1726893377652,0.07873164,2533.4,2533.0,1.3796]